fUST/lending_fUST_20250826
["ID","MTS","AMOUNT","RATE_DAILY","PERIOD"]
[381333592,1756140649407,-500.0,0.00041095,30]
[381333594,1756140649417,-500.0,0.00041095,30]
[381333596,1756140649428,-500.0,0.00041095,30]
[381333598,1756140649438,-500.0,0.00041095,30]
[381333600,1756140649448,-500.0,0.00041095,30]
[381333602,1756140649473,-500.0,0.00041095,30]
[381333639,1756140649795,-507.19824317,0.00041095,30]
[381333643,1756140649828,-480.0,0.00041095,30]
[381333646,1756140649847,-480.0,0.00041095,30]
[381333648,1756140649857,-480.0,0.00041095,30]
[381333650,1756140649866,-480.0,0.00041095,30]
[381333652,1756140649875,-480.0,0.00041095,30]
[381333654,1756140649885,-1262.67,0.00041095,30]
[381333656,1756140649895,-480.0,0.00041095,30]
[381333658,1756140649905,-480.0,0.00041095,30]
[381333660,1756140649914,-597.75,0.00041095,30]
[381333662,1756140649924,-480.0,0.00041095,30]
[381333664,1756140649933,-480.0,0.00041095,30]
[381333666,1756140649942,-527.03,0.00041095,30]
[381333668,1756140649951,-441.93486645,0.00041095,30]
[381333670,1756140649960,-214.411713,0.00041095,30]
[381333672,1756140649969,-609.53,0.00041095,30]
[381333674,1756140649978,-480.0,0.00041095,30]
[381333676,1756140649990,-480.0,0.00041095,30]
[381333678,1756140649999,-1310.2,0.00041095,30]
[381333680,1756140650008,-480.0,0.00041095,30]
[381333682,1756140650017,-1353.57,0.00041095,30]
[381333684,1756140650026,-480.0,0.00041095,30]
[381333686,1756140650035,-480.0,0.00041095,30]
[381333688,1756140650044,-480.0,0.00041095,30]
[381333690,1756140650054,-771.76,0.00041095,30]
[381333692,1756140650063,-480.0,0.00041095,30]
[381333694,1756140650072,-480.0,0.00041095,30]
[381333696,1756140650081,-628.26,0.00041095,30]
[381333698,1756140650090,-480.0,0.00041095,30]
[381333700,1756140650100,-480.0,0.00041095,30]
[381333702,1756140650109,-480.0,0.00041095,30]
[381333704,1756140650118,-543.07638246,0.00041095,30]
[381333706,1756140650127,-528.54,0.00041095,30]
[381333708,1756140650136,-480.0,0.00041095,30]
[381333710,1756140650146,-480.0,0.00041095,30]
[381333712,1756140650155,-1683.93,0.00041095,30]
[381333714,1756140650164,-480.0,0.00041095,30]
[381333716,1756140650173,-480.0,0.00041095,30]
[381333718,1756140650182,-480.0,0.00041095,30]
[381333720,1756140650191,-379.20404015,0.00041095,30]
[381333722,1756140650201,-480.0,0.00041095,30]
[381333724,1756140650210,-480.0,0.00041095,30]
[381333726,1756140650219,-480.0,0.00041095,30]
[381333728,1756140650228,-480.0,0.00041095,30]
[381333730,1756140650240,-480.0,0.00041095,30]
[381333732,1756140650250,-480.0,0.00041095,30]
[381333734,1756140650262,-480.0,0.00041095,30]
[381333736,1756140650272,-480.0,0.00041095,30]
[381333738,1756140650281,-698.25,0.00041095,30]
[381333740,1756140650290,-480.0,0.00041095,30]
[381333742,1756140650300,-748.2,0.00041095,30]
[381333744,1756140650309,-480.0,0.00041095,30]
[381333746,1756140650319,-1112.1,0.00041095,120]
[381333748,1756140650328,-480.0,0.00041095,30]
[381333750,1756140650337,-480.0,0.00041095,30]
[381333752,1756140650347,-594.97,0.00041095,30]
[381333754,1756140650356,-480.0,0.00041095,30]
[381333756,1756140650365,-956.04,0.00041095,30]
[381333758,1756140650377,-480.0,0.00041095,30]
[381333760,1756140650386,-480.0,0.00041095,30]
[381333762,1756140650395,-619.24119866,0.00041095,30]
[381333764,1756140650413,-982.18,0.00041095,30]
[381333766,1756140650423,-480.0,0.00041095,30]
[381333768,1756140650433,-1002.06,0.00041095,30]
[381333770,1756140650442,-725.22,0.00041095,30]
[381333772,1756140650451,-480.0,0.00041095,30]
[381333774,1756140650460,-491.39,0.00041095,30]
[381333776,1756140650470,-480.0,0.00041095,30]
[381333778,1756140650479,-480.0,0.00041095,30]
[381333780,1756140650488,-1435.12,0.00041095,30]
[381333782,1756140650497,-480.0,0.00041095,30]
[381333784,1756140650507,-500.0,0.00041095,30]
[381333786,1756140650516,-500.0,0.00041095,30]
[381333788,1756140650525,-500.0,0.00041095,30]
[381333790,1756140650534,-500.0,0.00041095,30]
[381333792,1756140650543,-500.0,0.00041095,30]
[381333794,1756140650552,-500.0,0.00041095,30]
[381333795,1756140650561,-500.0,0.00041095,30]
[381333796,1756140650571,-500.0,0.00041095,30]
[381333798,1756140650580,-500.0,0.00041095,30]
[381333800,1756140650589,-692.37,0.00041095,30]
[381333802,1756140650598,-540.12,0.00041095,30]
[381333804,1756140650607,-500.0,0.00041095,30]
[381333806,1756140650617,-500.0,0.00041095,30]
[381333808,1756140650626,-500.0,0.00041095,30]
[381333810,1756140650635,-500.0,0.00041095,30]
[381333812,1756140650644,-500.0,0.00041095,30]
[381333814,1756140650653,-164.35554201,0.00041095,30]
[381333816,1756140650662,-480.0,0.00041095,30]
[381333818,1756140650671,-457.06,0.00041095,30]
[381333820,1756140650681,-480.0,0.00041095,30]
[381333822,1756140650690,-480.0,0.00041095,30]
[381333824,1756140650699,-2932.47,0.00041095,30]
[381333826,1756140650708,-480.0,0.00041095,30]
[381333828,1756140650717,-480.0,0.00041095,30]
[381333830,1756140650726,-480.0,0.00041095,30]
[381333832,1756140650735,-480.0,0.00041095,30]
[381333834,1756140650746,-480.0,0.00041095,30]
[381333836,1756140650754,-1629.78,0.00041095,30]
[381333838,1756140650763,-480.0,0.00041095,30]
[381333840,1756140650772,-480.0,0.00041095,30]
[381333842,1756140650782,-480.0,0.00041095,30]
[381333844,1756140650791,-480.0,0.00041095,30]
[381333846,1756140650800,-151.0,0.00041095,15]
[381333848,1756140650809,-480.0,0.00041095,30]
[381333850,1756140650818,-151.0,0.00041095,15]
[381333852,1756140650828,-151.0,0.00041095,15]
[381333854,1756140650840,-151.0,0.00041095,15]
[381333856,1756140650850,-237.7853271,0.00041095,30]
[381333858,1756140650859,-494.12993107,0.00041095,30]
[381333860,1756140650868,-490.9,0.00041095,30]
[381333862,1756140650878,-1028.95,0.00041095,30]
[381333864,1756140650887,-507.78,0.00041095,30]
[381333866,1756140650896,-480.0,0.00041095,30]
[381333868,1756140650905,-480.0,0.00041095,30]
[381333870,1756140650916,-480.0,0.00041095,30]
[381333871,1756140650926,-480.0,0.00041095,30]
[381333873,1756140650935,-480.0,0.00041095,30]
[381333875,1756140650945,-825.61,0.00041095,30]
[381333877,1756140650954,-480.0,0.00041095,30]
[381333879,1756140650964,-533.03,0.00041095,30]
[381333881,1756140650973,-480.0,0.00041095,30]
[381333883,1756140650982,-480.0,0.00041095,30]
[381333885,1756140650992,-659.23,0.00041095,30]
[381333887,1756140651002,-151.0,0.00041095,30]
[381333888,1756140651012,-151.0,0.00041095,30]
[381333890,1756140651021,-480.0,0.00041095,30]
[381333892,1756140651030,-1568.91,0.00041095,30]
[381333894,1756140651040,-480.0,0.00041095,30]
[381333896,1756140651049,-480.0,0.00041095,30]
[381333898,1756140651059,-480.0,0.00041095,30]
[381333900,1756140651068,-515.04,0.00041095,30]
[381333902,1756140651077,-460.29294089,0.00041095,30]
[381333904,1756140651087,-2073.24,0.00041095,30]
[381333906,1756140651096,-1220.28,0.00041095,30]
[381333908,1756140651105,-480.0,0.00041095,30]
[381333910,1756140651115,-549.96,0.00041095,30]
[381333912,1756140651125,-480.0,0.00041095,30]
[381333914,1756140651135,-480.0,0.00041095,30]
[381333916,1756140651144,-507.82,0.00041095,30]
[381333918,1756140651154,-1296.34,0.00041095,30]
[381333920,1756140651164,-151.0,0.00041095,30]
[381333922,1756140651173,-151.0,0.00041095,30]
[381333924,1756140651183,-151.0,0.00041095,30]
[381333926,1756140651192,-151.0,0.00041095,30]
[381333928,1756140651201,-1786.64,0.00041095,30]
[381333930,1756140651210,-151.0,0.00041095,30]
[381333932,1756140651220,-151.0,0.00041095,30]
[381333934,1756140651229,-151.857407,0.00041095,30]
[381333936,1756140651239,-2048.57,0.00041095,30]
[381333938,1756140651250,-151.0,0.00041095,30]
[381333940,1756140651259,-151.0,0.00041095,30]
[381333942,1756140651269,-758.68,0.00041095,30]
[381333944,1756140651278,-1120.37,0.00041095,30]
[381333946,1756140651287,-480.0,0.00041095,30]
[381333947,1756140651297,-2951.33,0.00041095,30]
[381333949,1756140651306,-679.78,0.00041095,30]
[381333951,1756140651315,-480.0,0.00041095,30]
[381333953,1756140651324,-1918.58,0.00041095,30]
[381333955,1756140651334,-1170.18,0.00041095,30]
[381333957,1756140651343,-480.0,0.00041095,30]
[381333959,1756140651352,-151.0,0.00041095,30]
[381333961,1756140651362,-151.0,0.00041095,30]
[381333963,1756140651371,-151.0,0.00041095,30]
[381333965,1756140651380,-151.0,0.00041095,30]
[381333967,1756140651390,-480.0,0.00041095,30]
[381333969,1756140651399,-766.68,0.00041095,30]
[381333971,1756140651408,-512.09,0.00041095,30]
[381333972,1756140651417,-480.0,0.00041095,30]
[381333974,1756140651426,-896.66,0.00041095,30]
[381333976,1756140651435,-480.0,0.00041095,30]
[381333978,1756140651444,-151.0,0.00041095,30]
[381333980,1756140651454,-151.0,0.00041095,30]
[381333982,1756140651463,-151.0,0.00041095,30]
[381333984,1756140651473,-151.0,0.00041095,30]
[381333987,1756140651483,-151.0,0.00041095,30]
[381333989,1756140651493,-151.0,0.00041095,30]
[381333991,1756140651502,-824.03,0.00041095,30]
[381333992,1756140651511,-480.0,0.00041095,30]
[381333994,1756140651520,-564.67858254,0.00041095,30]
[381333996,1756140651530,-480.0,0.00041095,30]
[381333998,1756140651539,-620.02,0.00041095,30]
[381334000,1756140651548,-905.54,0.00041095,30]
[381334002,1756140651558,-1254.86,0.00041095,30]
[381334004,1756140651567,-1474.19,0.00041095,30]
[381334006,1756140651576,-480.0,0.00041095,30]
[381334008,1756140651585,-1606.4,0.00041095,30]
[381334010,1756140651595,-480.0,0.00041095,30]
[381334012,1756140651604,-1442.96,0.00041095,30]
[381334014,1756140651612,-480.0,0.00041095,30]
[381334016,1756140651621,-1000.0,0.00041095,30]
[381334018,1756140651631,-480.0,0.00041095,30]
[381334020,1756140651640,-664.46,0.00041095,30]
[381334022,1756140651650,-480.0,0.00041095,30]
[381334024,1756140651660,-1158.99,0.00041095,30]
[381334026,1756140651669,-1154.68,0.00041095,30]
[381334028,1756140651679,-2474.12,0.00041095,30]
[381334030,1756140651688,-3703.42,0.00041095,30]
[381334032,1756140651698,-480.0,0.00041095,30]
[381334034,1756140651707,-480.0,0.00041095,30]
[381334036,1756140651717,-151.0,0.00041095,30]
[381334038,1756140651727,-480.0,0.00041095,30]
[381334040,1756140651736,-151.0,0.00041095,30]
[381334042,1756140651748,-151.0,0.00041095,30]
[381334044,1756140651757,-151.0,0.00041095,30]
[381334046,1756140651767,-480.0,0.00041095,30]
[381334048,1756140651776,-1344.67,0.00041095,30]
[381334050,1756140651786,-480.0,0.00041095,30]
[381334052,1756140651795,-480.0,0.00041095,30]
[381334054,1756140651804,-2211.04,0.00041095,30]
[381334056,1756140651812,-480.0,0.00041095,30]
[381334057,1756140651822,-480.0,0.00041095,30]
[381334059,1756140651831,-581.14,0.00041095,30]
[381334061,1756140651844,-480.0,0.00041095,30]
[381334063,1756140651853,-480.0,0.00041095,30]
[381334065,1756140651863,-734.59,0.00041095,7]
[381334067,1756140651873,-480.0,0.00041095,30]
[381334069,1756140651883,-480.0,0.00041095,30]
[381334071,1756140651893,-746.57,0.00041095,30]
[381334073,1756140651902,-574.4588584,0.00041095,30]
[381334075,1756140651912,-480.0,0.00041095,30]
[381334077,1756140651922,-480.0,0.00041095,30]
[381334079,1756140651932,-865.69,0.00041095,30]
[381334081,1756140651941,-151.0,0.00041095,30]
[381334083,1756140651951,-153.160609,0.00041095,30]
[381334085,1756140651960,-1030.64,0.00041095,30]
[381334087,1756140651970,-750.67,0.00041095,30]
[381334089,1756140651979,-626.84,0.00041095,30]
[381334091,1756140651989,-842.19,0.00041095,30]
[381334092,1756140651998,-480.0,0.00041095,30]
[381334094,1756140652009,-480.0,0.00041095,30]
[381334096,1756140652018,-151.0,0.00041095,30]
[381334098,1756140652028,-151.0,0.00041095,30]
[381334100,1756140652038,-2711.98,0.00041095,30]
[381334102,1756140652048,-264.936472,0.00041095,30]
[381334104,1756140652058,-480.0,0.00041095,30]
[381334106,1756140652068,-480.0,0.00041095,30]
[381334108,1756140652078,-480.0,0.00041095,30]
[381334110,1756140652087,-631.12,0.00041095,30]
[381334112,1756140652097,-480.0,0.00041095,30]
[381334114,1756140652106,-631.79,0.00041095,30]
[381334116,1756140652116,-1017.55,0.00041095,30]
[381334117,1756140652125,-480.0,0.00041095,30]
[381334118,1756140652134,-480.0,0.00041095,30]
[381334119,1756140652143,-480.0,0.00041095,30]
[381334120,1756140652153,-1347.31,0.00041095,30]
[381334121,1756140652162,-480.0,0.00041095,30]
[381334122,1756140652172,-480.0,0.00041095,30]
[381334123,1756140652182,-3693.71,0.00041095,30]
[381334124,1756140652191,-1535.18,0.00041095,30]
[381334125,1756140652202,-480.0,0.00041095,30]
[381334126,1756140652212,-546.29,0.00041095,30]
[381334127,1756140652222,-2341.7,0.00041095,30]
[381334128,1756140652234,-480.0,0.00041095,30]
[381334129,1756140652244,-609.77,0.00041095,30]
[381334130,1756140652253,-480.0,0.00041095,30]
[381334131,1756140652263,-480.0,0.00041095,30]
[381334132,1756140652273,-480.0,0.00041095,30]
[381334133,1756140652282,-480.0,0.00041095,30]
[381334134,1756140652291,-480.0,0.00041095,30]
[381334135,1756140652300,-1012.97,0.00041095,30]
[381334136,1756140652310,-196.74679243,0.00041095,30]
[381334137,1756140652320,-1757.36,0.00041095,30]
[381334138,1756140652329,-2239.25,0.00041095,30]
[381334139,1756140652339,-702.49,0.00041095,30]
[381334140,1756140652348,-480.0,0.00041095,30]
[381334141,1756140652358,-759.94,0.00041095,30]
[381334142,1756140652368,-784.62,0.00041095,30]
[381334143,1756140652377,-480.0,0.00041095,30]
[381334144,1756140652387,-480.0,0.00041095,30]
[381334145,1756140652397,-437.58850012,0.00041095,30]
[381334146,1756140652406,-598.38,0.00041095,30]
[381334147,1756140652415,-1208.52,0.00041095,30]
[381334149,1756140652425,-480.0,0.00041095,30]
[381334151,1756140652434,-480.0,0.00041095,30]
[381334153,1756140652444,-980.26,0.00041095,30]
[381334155,1756140652453,-480.0,0.00041095,30]
[381334157,1756140652463,-358.8920907,0.00041095,30]
[381334159,1756140652473,-480.0,0.00041095,30]
[381334161,1756140652482,-480.0,0.00041095,30]
[381334163,1756140652492,-481.54,0.00041095,30]
[381334165,1756140652501,-480.0,0.00041095,30]
[381334167,1756140652510,-663.97,0.00041095,30]
[381334169,1756140652520,-480.0,0.00041095,30]
[381334171,1756140652529,-480.0,0.00041095,30]
[381334173,1756140652539,-815.47,0.00041095,30]
[381334175,1756140652548,-480.27846722,0.00041095,30]
[381334177,1756140652558,-480.0,0.00041095,30]
[381334179,1756140652568,-1307.85,0.00041095,30]
[381334180,1756140652577,-480.0,0.00041095,30]
[381334182,1756140652586,-151.0,0.00041095,30]
[381334184,1756140652596,-460.52244239,0.00041095,30]
[381334186,1756140652605,-151.0,0.00041095,30]
[381334188,1756140652615,-460.88692793,0.00041095,30]
[381334189,1756140652624,-955.26,0.00041095,30]
[381334191,1756140652633,-480.0,0.00041095,30]
[381334193,1756140652642,-688.96,0.00041095,30]
[381334195,1756140652652,-480.0,0.00041095,30]
[381334197,1756140652661,-480.0,0.00041095,30]
[381334199,1756140652671,-2112.7,0.00041095,30]
[381334201,1756140652680,-1564.42,0.00041095,30]
[381334203,1756140652690,-480.0,0.00041095,30]
[381334205,1756140652700,-480.0,0.00041095,30]
[381334207,1756140652709,-1015.19,0.00041095,30]
[381334209,1756140652719,-480.0,0.00041095,30]
[381334211,1756140652729,-203.90425891,0.00041095,30]
[381334213,1756140652739,-480.0,0.00041095,30]
[381334215,1756140652748,-480.0,0.00041095,30]
[381334216,1756140652757,-480.0,0.00041095,30]
[381334218,1756140652767,-480.0,0.00041095,30]
[381334220,1756140652776,-480.0,0.00041095,30]
[381334222,1756140652786,-480.0,0.00041095,30]
[381334224,1756140652795,-480.0,0.00041095,30]
[381334226,1756140652805,-151.0,0.00041095,30]
[381334228,1756140652814,-151.0,0.00041095,30]
[381334230,1756140652824,-151.0,0.00041095,30]
[381334232,1756140652835,-151.0,0.00041095,30]
[381334234,1756140652846,-480.0,0.00041095,30]
[381334236,1756140652856,-585.59,0.00041095,30]
[381334238,1756140652865,-1776.65,0.00041095,30]
[381334240,1756140652876,-151.0,0.00041095,30]
[381334242,1756140652886,-151.0,0.00041095,30]
[381334244,1756140652896,-490.45,0.00041095,30]
[381334246,1756140652905,-151.0,0.00041095,30]
[381334248,1756140652915,-151.0,0.00041095,30]
[381334250,1756140652924,-151.0,0.00041095,30]
[381334252,1756140652934,-151.0,0.00041095,30]
[381334253,1756140652944,-151.0,0.00041095,30]
[381334255,1756140652953,-151.0,0.00041095,30]
[381334257,1756140652963,-151.0,0.00041095,30]
[381334275,1756140653133,-151.0,0.00041095,30]
[381334277,1756140653148,-167.291048,0.00041095,30]
[381334279,1756140653158,-480.0,0.00041095,30]
[381334281,1756140653167,-480.0,0.00041095,30]
[381334283,1756140653178,-480.0,0.00041095,30]
[381334285,1756140653187,-480.0,0.00041095,30]
[381334287,1756140653197,-480.0,0.00041095,30]
[381334288,1756140653206,-862.48,0.00041095,30]
[381334290,1756140653216,-1655.98,0.00041095,30]
[381334292,1756140653226,-3024.09,0.00041095,30]
[381334294,1756140653235,-480.0,0.00041095,30]
[381334296,1756140653246,-771.86,0.00041095,20]
[381334298,1756140653255,-480.0,0.00041095,30]
[381334300,1756140653264,-480.0,0.00041095,30]
[381334302,1756140653273,-1092.83,0.00041095,30]
[381334304,1756140653282,-480.0,0.00041095,30]
[381334305,1756140653291,-480.0,0.00041095,30]
[381334307,1756140653300,-614.96,0.00041095,30]
[381334309,1756140653310,-480.0,0.00041095,30]
[381334311,1756140653319,-480.0,0.00041095,7]
[381334313,1756140653328,-480.0,0.00041095,30]
[381334315,1756140653338,-480.0,0.00041095,30]
[381334317,1756140653347,-480.0,0.00041095,30]
[381334319,1756140653356,-1314.01,0.00041095,30]
[381334321,1756140653366,-480.0,0.00041095,30]
[381334323,1756140653375,-480.0,0.00041095,30]
[381334325,1756140653384,-500.0,0.00041095,30]
[381334327,1756140653394,-500.0,0.00041095,30]
[381334328,1756140653402,-500.0,0.00041095,30]
[381334330,1756140653412,-500.0,0.00041095,30]
[381334332,1756140653421,-480.0,0.00041095,30]
[381334334,1756140653431,-500.0,0.00041095,30]
[381334335,1756140653440,-500.0,0.00041095,30]
[381334337,1756140653449,-3456.02,0.00041095,30]
[381334339,1756140653458,-500.0,0.00041095,30]
[381334341,1756140653468,-503.42708413,0.00041095,30]
[381334343,1756140653477,-500.0,0.00041095,30]
[381334345,1756140653486,-500.0,0.00041095,30]
[381334347,1756140653497,-480.0,0.00041095,30]
[381334349,1756140653507,-500.0,0.00041095,30]
[381334351,1756140653516,-480.0,0.00041095,30]
[381334353,1756140653525,-239.04223602,0.00041095,30]
[381334355,1756140653534,-1589.47,0.00041095,30]
[381334356,1756140653543,-552.86,0.00041095,30]
[381334358,1756140653553,-480.0,0.00041095,30]
[381334360,1756140653563,-788.91,0.00041095,30]
[381334362,1756140653572,-539.63,0.00041095,30]
[381334364,1756140653581,-480.0,0.00041095,30]
[381334366,1756140653591,-480.0,0.00041095,30]
[381334368,1756140653600,-480.0,0.00041095,30]
[381334370,1756140653610,-480.0,0.00041095,30]
[381334372,1756140653620,-808.19,0.00041095,30]
[381334374,1756140653630,-3947.67,0.00041095,30]
[381334375,1756140653639,-480.0,0.00041095,30]
[381334377,1756140653649,-510.03980501,0.00041095,30]
[381334379,1756140653659,-480.0,0.00041095,30]
[381334381,1756140653668,-687.95,0.00041095,30]
[381334383,1756140653678,-3171.88,0.00041095,30]
[381334385,1756140653688,-566.75,0.00041095,30]
[381334387,1756140653698,-555.81,0.00041095,30]
[381334388,1756140653707,-480.0,0.00041095,30]
[381334390,1756140653716,-1895.08,0.00041095,30]
[381334392,1756140653727,-480.0,0.00041095,30]
[381334394,1756140653736,-763.51,0.00041095,30]
[381334396,1756140653747,-151.0,0.00041095,30]
[381334398,1756140653756,-151.0,0.00041095,30]
[381334400,1756140653766,-1316.42,0.00041095,30]
[381334402,1756140653775,-480.0,0.00041095,30]
[381334404,1756140653785,-1072.85,0.00041095,30]
[381334406,1756140653794,-577.89,0.00041095,30]
[381334407,1756140653803,-480.0,0.00041095,30]
[381334409,1756140653812,-1879.11,0.00041095,30]
[381334411,1756140653822,-480.0,0.00041095,5]
[381334413,1756140653831,-492.65,0.00041095,30]
[381334415,1756140653844,-3063.35,0.00041095,30]
[381334417,1756140653853,-480.0,0.00041095,30]
[381334419,1756140653862,-496.67,0.00041095,30]
[381334421,1756140653871,-575.1,0.00041095,30]
[381334423,1756140653880,-480.0,0.00041095,30]
[381334424,1756140653890,-480.0,0.00041095,30]
[381334426,1756140653899,-2202.59,0.00041095,30]
[381334428,1756140653909,-2095.16,0.00041095,30]
[381334430,1756140653919,-480.0,0.00041095,30]
[381334432,1756140653928,-480.0,0.00041095,30]
[381334434,1756140653938,-480.0,0.00041095,30]
[381334435,1756140653947,-660.94,0.00041095,30]
[381334437,1756140653957,-4438.23,0.00041095,30]
[381334439,1756140653967,-480.0,0.00041095,30]
[381334441,1756140653976,-480.0,0.00041095,30]
[381334443,1756140653985,-480.0,0.00041095,30]
[381334445,1756140653996,-480.0,0.00041095,30]
[381334447,1756140654007,-480.0,0.00041095,30]
[381334449,1756140654016,-480.0,0.00041095,30]
[381334451,1756140654026,-480.0,0.00041095,30]
[381334453,1756140654036,-480.0,0.00041095,30]
[381334455,1756140654046,-480.0,0.00041095,30]
[381334457,1756140654055,-668.63,0.00041095,30]
[381334459,1756140654064,-1105.07,0.00041095,30]
[381334460,1756140654074,-480.0,0.00041095,30]
[381334462,1756140654083,-747.3,0.00041095,30]
[381334464,1756140654093,-1112.21,0.00041095,30]
[381334466,1756140654102,-616.51,0.00041095,30]
[381334468,1756140654111,-480.0,0.00041095,30]
[381334470,1756140654121,-480.0,0.00041095,30]
[381334472,1756140654130,-480.0,0.00041095,30]
[381334474,1756140654139,-759.39,0.00041095,30]
[381334476,1756140654149,-1036.77,0.00041095,30]
[381334477,1756140654158,-480.0,0.00041095,30]
[381334479,1756140654167,-1260.83,0.00041095,30]
[381334481,1756140654177,-1002.11,0.00041095,30]
[381334483,1756140654186,-480.0,0.00041095,30]
[381334485,1756140654196,-228.89774205,0.00041095,30]
[381334487,1756140654206,-8508.84,0.00041095,30]
[381334489,1756140654215,-151.0,0.00041095,30]
[381334491,1756140654225,-1083.28,0.00041095,30]
[381334493,1756140654234,-151.0,0.00041095,30]
[381334495,1756140654244,-151.0,0.00041095,30]
[381334497,1756140654254,-151.0,0.00041095,30]
[381334499,1756140654263,-480.0,0.00041095,30]
[381334501,1756140654273,-480.0,0.00041095,30]
[381334502,1756140654282,-2646.85,0.00041095,30]
[381334504,1756140654292,-301.4,0.00041095,30]
[381334506,1756140654301,-2550.05,0.00041095,30]
[381334508,1756140654311,-1232.48,0.00041095,30]
[381334510,1756140654320,-480.0,0.00041095,30]
[381334512,1756140654330,-514.91,0.00041095,30]
[381334514,1756140654339,-627.58,0.00041095,30]
[381334516,1756140654349,-480.0,0.00041095,30]
[381334518,1756140654359,-931.19,0.00041095,30]
[381334520,1756140654369,-607.22,0.00041095,30]
[381334522,1756140654379,-480.0,0.00041095,30]
[381334524,1756140654389,-151.0,0.00041095,30]
[381334526,1756140654398,-151.0,0.00041095,30]
[381334528,1756140654407,-480.0,0.00041095,30]
[381334530,1756140654417,-151.0,0.00041095,30]
[381334532,1756140654426,-770.82,0.00041095,30]
[381334533,1756140654436,-161.372336,0.00041095,30]
[381334535,1756140654445,-480.0,0.00041095,30]
[381334537,1756140654454,-480.0,0.00041095,30]
[381334539,1756140654463,-3748.6,0.00041095,30]
[381334541,1756140654472,-2791.8,0.00041095,30]
[381334543,1756140654482,-480.0,0.00041095,30]
[381334545,1756140654491,-480.0,0.00041095,30]
[381334547,1756140654501,-480.0,0.00041095,30]
[381334549,1756140654510,-480.0,0.00041095,30]
[381334551,1756140654519,-460.25256797,0.00041095,30]
[381334553,1756140654529,-1181.99,0.00041095,30]
[381334555,1756140654538,-480.0,0.00041095,30]
[381334556,1756140654547,-574.05,0.00041095,30]
[381334558,1756140654557,-2172.7,0.00041095,30]
[381334559,1756140654566,-480.0,0.00041095,30]
[381334561,1756140654575,-480.0,0.00041095,30]
[381334563,1756140654585,-3079.72,0.00041095,30]
[381334565,1756140654594,-480.0,0.00041095,30]
[381334567,1756140654604,-933.93,0.00041095,30]
[381334569,1756140654614,-480.0,0.00041095,30]
[381334571,1756140654623,-732.1,0.00041095,30]
[381334573,1756140654632,-151.0,0.00041095,30]
[381334575,1756140654641,-480.0,0.00041095,30]
[381334577,1756140654651,-1025.6,0.00041095,30]
[381334578,1756140654660,-151.0,0.00041095,30]
[381334580,1756140654669,-480.0,0.00041095,30]
[381334581,1756140654678,-508.07,0.00041095,30]
[381334582,1756140654687,-452.70130293,0.00041095,30]